bitfinex/quotes_BTCUSD_20240728
["timestamp","ask_amount","ask_price","bid_price","bid_amount"]
[1722127719381,1.80893792,68036.0,68035.0,1e-06]
[1722127719574,2.03138305,68036.0,68035.0,1e-06]
[1722127719779,2.18164262,68036.0,68035.0,1e-06]
[1722127719938,2.19564262,68036.0,68035.0,1e-06]
[1722127720144,2.18164262,68036.0,68035.0,1e-06]
[1722127720346,2.16764262,68036.0,68035.0,1e-06]
[1722127720704,1.61121405,68036.0,68035.0,1e-06]
[1722127720885,1.62521405,68036.0,68035.0,1e-06]
[1722127721287,1.86038305,68036.0,68035.0,1e-06]
[1722127721540,1.85938305,68036.0,68035.0,1e-06]
[1722127721672,1.87338305,68036.0,68035.0,1e-06]
[1722127721874,2.01064262,68036.0,68035.0,1e-06]
[1722127722081,1.78947362,68036.0,68035.0,1e-06]
[1722127722302,1.77547362,68036.0,68035.0,1e-06]
[1722127722581,2.01064262,68036.0,68035.0,1e-06]
[1722127722777,1.96497526,68036.0,68035.0,1e-06]
[1722127723078,2.01023543,68036.0,68035.0,1e-06]
[1722127723278,2.02423543,68036.0,68035.0,1e-06]
[1722127723481,2.1857102,68036.0,68035.0,1e-06]
[1722127723739,2.1756361,68036.0,68035.0,1e-06]
[1722127724289,2.1626361,68036.0,68035.0,1e-06]
[1722127724784,1.79120753,68036.0,68035.0,1e-06]
[1722127725185,1.68967259,68036.0,68035.0,1e-06]
[1722127725388,1.98452749,68036.0,68035.0,1e-06]
[1722127725560,1.77735849,68036.0,68035.0,1e-06]
[1722127725823,1.76335849,68036.0,68035.0,1e-06]
[1722127725979,1.76641806,68036.0,68035.0,1e-06]
[1722127726187,1.7669569,68036.0,68035.0,1e-06]
[1722127726741,1.79003035,68036.0,68035.0,1e-06]
[1722127727020,1.77503035,68036.0,68035.0,1e-06]
[1722127727551,1.76203035,68036.0,68035.0,1e-06]
[1722127727875,1.77603035,68036.0,68035.0,1e-06]
[1722127728284,1.7529569,68036.0,68035.0,1e-06]
[1722127728487,1.7389569,68036.0,68035.0,1e-06]
[1722127728898,1.9741259,68036.0,68035.0,1e-06]
[1722127729104,1.9971259,68036.0,68035.0,1e-06]
[1722127729347,2.0111259,68036.0,68035.0,1e-06]
[1722127729563,1.9967922,68036.0,68035.0,1e-06]
[1722127729903,2.0107922,68036.0,68035.0,1e-06]
[1722127730293,1.9967922,68036.0,68035.0,1e-06]
[1722127730439,2.0227922,68036.0,68035.0,1e-06]
[1722127730838,2.0087922,68036.0,68035.0,1e-06]
[1722127731155,2.1489922,68036.0,68035.0,1e-06]
[1722127731357,2.1629922,68036.0,68035.0,1e-06]
[1722127731889,2.1489922,68036.0,68035.0,1e-06]
[1722127732092,2.1629922,68036.0,68035.0,1e-06]
[1722127732243,2.1489922,68036.0,68035.0,1e-06]
[1722127732652,2.1629922,68036.0,68035.0,1e-06]
[1722127732852,2.1489922,68036.0,68035.0,1e-06]
[1722127733055,2.14827125,68036.0,68035.0,1e-06]
[1722127733254,2.16227125,68036.0,68035.0,1e-06]
[1722127733473,2.14827125,68036.0,68035.0,1e-06]
[1722127733706,2.13427125,68036.0,68035.0,1e-06]
[1722127733883,2.16251068,68036.0,68035.0,1e-06]
[1722127734087,2.14851068,68036.0,68035.0,1e-06]
[1722127735006,2.15758485,68036.0,68035.0,1e-06]
[1722127735252,0.0632,68032.0,68031.0,1e-06]
[1722127735447,0.0632,68032.0,68025.0,0.009097]
[1722127735448,0.352806,68026.0,68025.0,0.009097]
[1722127735576,1.27197909,68026.0,68025.0,0.009097]
[1722127735806,1.97759109,68026.0,68025.0,0.009097]
[1722127736015,1.97759109,68026.0,68017.0,9.9e-07]
[1722127736016,0.1398,68022.0,68017.0,9.9e-07]
[1722127736225,1.32486757,68018.0,68017.0,9.9e-07]
[1722127736430,1.95492372,68018.0,68017.0,9.9e-07]
[1722127736772,2.21315472,68018.0,68017.0,9.9e-07]
[1722127737003,2.36341429,68018.0,68017.0,9.9e-07]
[1722127737352,2.37741429,68018.0,68017.0,9.9e-07]
[1722127737870,2.39141429,68018.0,68017.0,9.9e-07]
[1722127738372,2.40049383,68018.0,68017.0,9.9e-07]
[1722127738549,2.38649383,68018.0,68017.0,9.9e-07]
[1722127738759,2.40049383,68018.0,68017.0,9.9e-07]
[1722127738922,2.41449383,68018.0,68017.0,9.9e-07]
[1722127739125,2.35489968,68018.0,68017.0,9.9e-07]
[1722127739331,2.40126826,68018.0,68017.0,9.9e-07]
[1722127739524,2.41526826,68018.0,68017.0,9.9e-07]
[1722127739768,2.39218872,68018.0,68017.0,9.9e-07]
[1722127740082,2.37818872,68018.0,68017.0,9.9e-07]
[1722127740283,1.293792,68017.0,68001.0,0.1396]
[1722127740487,1.77767972,68017.0,68001.0,0.1396]
[1722127741048,1.293869,68013.0,68001.0,0.1396]
[1722127741256,1.293869,68013.0,68001.0,0.002]
[1722127741257,0.352884,68011.0,68001.0,0.002]
[1722127741603,1.93303879,68011.0,68010.0,1e-06]
[1722127741808,2.2284406,68011.0,68010.0,1e-06]
[1722127742016,0.823504,68002.0,68001.0,0.002]
[1722127742216,1.52055057,68002.0,68001.0,0.002]
[1722127742460,1.81598201,68002.0,68001.0,0.002]
[1722127742831,1.96624158,68002.0,68001.0,0.002]
[1722127743216,1.85098201,68002.0,68001.0,0.002]
[1722127744052,1.86198201,68002.0,68001.0,0.002]
[1722127744853,1.85098201,68002.0,68001.0,0.002]
[1722127745237,1.86398201,68002.0,68001.0,0.002]
[1722127745642,1.87259406,68002.0,68001.0,0.002]
[1722127745889,2.15395363,68002.0,68001.0,0.002]
[1722127746124,2.14095363,68002.0,68001.0,0.002]
[1722127746436,2.15495363,68002.0,68001.0,0.002]
[1722127746643,2.01185363,68002.0,68001.0,0.002]
[1722127746847,1.99785363,68002.0,68001.0,0.002]
[1722127747154,2.01185363,68002.0,68001.0,0.002]
[1722127747717,1.93770919,68002.0,68001.0,0.002]
[1722127747877,1.93770919,68002.0,68001.0,0.0813]
[1722127747878,1.10857775,68002.0,68001.0,0.0813]
[1722127748041,1.0139657,68002.0,68001.0,0.1459]
[1722127748243,0.9859657,68002.0,68001.0,0.1459]
[1722127748675,0.9999657,68002.0,68001.0,0.1459]
[1722127748871,1.0139657,68002.0,68001.0,0.1459]
[1722127749104,0.9999657,68002.0,68001.0,0.1459]
[1722127749255,1.04259464,68002.0,68001.0,0.1459]
[1722127749905,1.27788164,68002.0,68001.0,0.1459]
[1722127750211,1.26388164,68002.0,68001.0,0.1459]
[1722127750769,1.25667951,68002.0,68001.0,0.1459]
[1722127751044,1.26851146,68002.0,68001.0,0.1459]
[1722127751344,1.25851146,68002.0,68001.0,0.1459]
[1722127751546,1.25851146,68002.0,68001.0,0.002]
[1722127751741,1.66156817,68002.0,68001.0,0.002]
[1722127751971,1.44928117,68002.0,68001.0,0.002]
[1722127752332,1.46028117,68002.0,68001.0,0.002]
[1722127752734,1.46028117,68002.0,68001.0,0.1404]
[1722127752735,1.39965223,68002.0,68001.0,0.1404]
[1722127753334,1.40076922,68002.0,68001.0,0.1404]
[1722127754037,1.40107917,68002.0,68001.0,0.1404]
[1722127756253,1.40107917,68002.0,68001.0,0.002]
[1722127757202,1.34105057,68002.0,68001.0,0.002]
[1722127757404,1.55116464,68002.0,68001.0,0.002]
[1722127760322,1.78645164,68002.0,68001.0,0.002]
[1722127760520,1.49131014,68002.0,68001.0,0.002]
[1722127760727,1.5508768,68002.0,68001.0,0.002]
[1722127760962,1.5508768,68002.0,68001.0,0.002924]
[1722127760963,1.78613187,68002.0,68001.0,0.002924]
[1722127761361,1.55084487,68002.0,68001.0,0.002924]
[1722127762929,1.78613187,68002.0,68001.0,0.000924]
[1722127763134,1.80893129,68002.0,68001.0,0.000924]
[1722127763264,1.80393129,68002.0,68001.0,0.000924]
[1722127763472,1.77193129,68002.0,68001.0,0.000924]
[1722127763689,1.85383361,68002.0,68001.0,0.000924]
[1722127763929,1.87483361,68002.0,68001.0,0.000924]
[1722127764422,1.94063361,68002.0,68001.0,0.000924]
[1722127764623,1.94363361,68002.0,68001.0,0.000924]
[1722127764826,1.79993361,68002.0,68001.0,0.000924]
[1722127765032,1.81093361,68002.0,68001.0,0.000924]
[1722127766022,1.66067404,68002.0,68001.0,0.000924]
[1722127766259,1.57633757,68002.0,68001.0,0.000924]
[1722127766521,1.65009341,68002.0,68001.0,0.000924]
[1722127766667,1.63609341,68002.0,68001.0,0.000924]
[1722127766866,1.58633757,68002.0,68001.0,0.000924]
[1722127767067,1.79661506,68002.0,68001.0,0.000924]
[1722127767265,1.78261506,68002.0,68001.0,0.000924]
[1722127767467,1.77261506,68002.0,68001.0,0.000924]
[1722127767675,1.78661506,68002.0,68001.0,0.000924]
[1722127768397,1.79661506,68002.0,68001.0,0.000924]
[1722127769603,1.78261506,68002.0,68001.0,0.000924]
[1722127769805,1.77261506,68002.0,68001.0,0.000924]
[1722127770003,1.78661506,68002.0,68001.0,0.000924]
[1722127770228,1.72659714,68002.0,68001.0,0.000924]
[1722127770418,1.7891186,68002.0,68001.0,0.000924]
[1722127770612,1.8031186,68002.0,68001.0,0.000924]
[1722127773011,1.7751186,68002.0,68001.0,0.000924]
[1722127773556,1.80343941,68002.0,68001.0,0.000924]
[1722127773758,1.77543941,68002.0,68001.0,0.000924]
[1722127773977,1.78943941,68002.0,68001.0,0.000924]
[1722127775151,1.80343941,68002.0,68001.0,0.000924]
[1722127775942,1.78943941,68002.0,68001.0,0.000924]
[1722127776136,1.56815241,68002.0,68001.0,0.000924]
[1722127776341,1.55415241,68002.0,68001.0,0.000924]
[1722127776559,1.56815241,68002.0,68001.0,0.000924]
[1722127776793,1.80297318,68002.0,68001.0,0.000924]
[1722127776934,0.352941,68000.0,67999.0,0.0788]
[1722127777281,1.81825261,68000.0,67999.0,0.0788]
[1722127778254,1.83025261,68000.0,67999.0,0.0788]
[1722127778441,1.88163816,68000.0,67999.0,0.0788]
[1722127778638,1.83025261,68000.0,67999.0,0.0788]
[1722127779179,1.70365261,68000.0,67999.0,0.0788]
[1722127779546,1.71465261,68000.0,67999.0,0.0788]
[1722127779985,1.66585581,68000.0,67999.0,0.0788]
[1722127780309,1.71429234,68000.0,67999.0,0.0788]
[1722127780483,1.86455181,68000.0,67999.0,0.0788]
[1722127781110,0.235297,67999.0,67993.0,0.0787]
[1722127781408,0.82344457,67994.0,67993.0,0.0787]
[1722127781638,1.45608824,67994.0,67993.0,0.0787]
[1722127782153,1.45568124,67994.0,67993.0,0.0787]
[1722127782768,1.57375694,67994.0,67993.0,0.0787]
[1722127783174,1.57383259,67994.0,67993.0,0.0787]
[1722127783675,1.57783259,67994.0,67993.0,0.0787]
[1722127784135,1.45975689,67994.0,67993.0,0.0787]
[1722127784866,1.46475689,67994.0,67993.0,0.0787]
[1722127785074,0.40584389,67994.0,67982.0,0.0787]
[1722127785292,0.588347,67987.0,67979.0,0.144]
[1722127785489,1.35586889,67987.0,67979.0,0.144]
[1722127785714,1.71420789,67987.0,67979.0,0.144]
[1722127785901,1.47886889,67987.0,67979.0,0.144]
[1722127786070,1.71420789,67987.0,67979.0,0.144]
[1722127786270,1.65252357,67987.0,67979.0,0.144]
[1722127786471,1.74046562,67987.0,67979.0,0.144]
[1722127786684,1.75446562,67987.0,67979.0,0.144]
[1722127787052,1.88196562,67987.0,67979.0,0.144]
[1722127787411,1.89596562,67987.0,67979.0,0.144]
[1722127787585,2.04622519,67987.0,67979.0,0.144]
[1722127788997,1.529814,67982.0,67973.0,0.074408]
[1722127789211,1.529814,67982.0,67973.0,0.009108]
[1722127789212,1.89101562,67982.0,67973.0,0.009108]
[1722127789403,1.89101562,67982.0,67973.0,0.074408]
[1722127789824,1.91410636,67982.0,67973.0,0.074408]
[1722127790029,2.06436593,67982.0,67973.0,0.074408]
[1722127790226,1.82900993,67982.0,67973.0,0.074408]
[1722127790436,1.41130362,67982.0,67981.0,0.146]
[1722127790640,1.16194762,67982.0,67981.0,0.146]
[1722127790917,0.94059162,67982.0,67981.0,0.146]
[1722127791132,0.92659162,67982.0,67981.0,0.146]
[1722127791626,0.94059162,67982.0,67981.0,0.146]
[1722127791775,1.17594762,67982.0,67981.0,0.146]
[1722127792339,1.08800557,67982.0,67981.0,0.146]
[1722127792551,0.67796178,67982.0,67981.0,0.146]
[1722127792846,0.54371337,67982.0,67981.0,0.146]
[1722127793047,0.79106937,67982.0,67981.0,0.146]
[1722127793258,0.77706937,67982.0,67981.0,0.146]
[1722127793654,0.77606937,67982.0,67981.0,0.146924]
[1722127794194,0.7653751,67982.0,67981.0,0.146924]
[1722127795120,0.82631673,67982.0,67981.0,0.146924]
[1722127795724,0.97400557,67982.0,67981.0,0.146924]
[1722127795937,1.06162789,67982.0,67981.0,0.146924]
[1722127798979,0.97400557,67982.0,67981.0,0.146924]
[1722127799179,1.06198821,67982.0,67981.0,0.146924]
[1722127799383,1.14946526,67982.0,67981.0,0.146924]
[1722127799560,1.14896394,67982.0,67981.0,0.146924]
[1722127800365,1.06148689,67982.0,67981.0,0.146924]
[1722127800556,1.16148689,67982.0,67981.0,0.146924]
[1722127800756,1.39684289,67982.0,67981.0,0.146924]
[1722127801205,1.16148689,67982.0,67981.0,0.146924]
[1722127801410,1.07400557,67982.0,67981.0,0.146924]
[1722127801650,1.16109849,67982.0,67981.0,0.146924]
[1722127801813,1.39645449,67982.0,67981.0,0.146924]
[1722127802648,1.40845449,67982.0,67981.0,0.146924]
[1722127802937,1.40245449,67982.0,67981.0,0.146924]
[1722127803083,1.39645449,67982.0,67981.0,0.146924]
[1722127803288,1.40845449,67982.0,67981.0,0.146924]
[1722127803491,1.17309849,67982.0,67981.0,0.146924]
[1722127804668,1.17170924,67982.0,67981.0,0.146924]
[1722127804935,1.07170924,67982.0,67981.0,0.146924]
[1722127805180,0.83635324,67982.0,67981.0,0.146924]
[1722127805425,1.07170924,67982.0,67981.0,0.146924]
[1722127805898,1.07870924,67982.0,67981.0,0.146924]
[1722127806138,1.05970924,67982.0,67981.0,0.146924]
[1722127806373,1.07070924,67982.0,67981.0,0.146924]
[1722127806809,1.06370924,67982.0,67981.0,0.146924]
[1722127807190,1.06670924,67982.0,67981.0,0.146924]
[1722127807393,0.83135324,67982.0,67981.0,0.146924]
[1722127807645,0.82835324,67982.0,67981.0,0.146924]
[1722127807848,0.82923406,67982.0,67981.0,0.146924]
[1722127808023,0.83123406,67982.0,67981.0,0.146924]
[1722127808232,0.80507076,67982.0,67981.0,0.146924]
[1722127808435,0.83123245,67982.0,67981.0,0.146924]
[1722127808589,0.23884245,67982.0,67981.0,0.146924]
[1722127808809,0.17842126,67982.0,67981.0,0.146924]
[1722127809025,0.29909926,67982.0,67981.0,0.146924]
[1722127809255,0.53445526,67982.0,67981.0,0.146924]
[1722127809659,0.53245526,67982.0,67981.0,0.146924]
[1722127810062,0.53345526,67982.0,67981.0,0.146924]
[1722127810430,0.53045526,67982.0,67981.0,0.146924]
[1722127811931,0.53145526,67982.0,67981.0,0.146924]
[1722127812086,0.17842126,67982.0,67981.0,0.146924]
[1722127814322,0.17832721,67982.0,67981.0,0.146924]
[1722127815090,0.02806764,67982.0,67981.0,0.735321]
[1722127815295,0.002,67982.0,67981.0,0.97068]
[1722127816133,0.001,67982.0,67981.0,0.97068]
[1722127816426,0.117644,68002.0,67993.0,0.491477]
[1722127816669,0.117642,68003.0,67993.0,0.726795]
[1722127816878,0.117644,68002.0,67993.0,0.726795]
[1722127817274,0.235269,68007.0,67993.0,0.962113]
[1722127817507,0.2361,68010.0,67993.0,0.962113]
[1722127817678,0.23527,68007.0,67993.0,0.726795]
[1722127817879,0.117641,68004.0,67993.0,0.726795]
[1722127818055,0.11764,68004.0,67993.0,0.726795]
[1722127818475,0.117638,68006.0,67993.0,0.726795]
[1722127818720,0.15109957,67994.0,67993.0,0.1455]
[1722127818936,0.00084,67994.0,67993.0,0.498477]
[1722127819112,0.00084,67994.0,67993.0,0.491477]
[1722127819357,0.00184,67994.0,67993.0,0.518477]
[1722127820004,0.00184,67994.0,67993.0,0.283159]
[1722127820178,0.00184,67994.0,67993.0,0.518477]
[1722127820383,0.00184,67994.0,67993.0,0.283159]
[1722127821530,0.00184,67994.0,67993.0,0.1655]
[1722127821531,0.26975657,67994.0,67993.0,0.1655]
[1722127821701,0.53059503,67994.0,67993.0,0.1655]
[1722127822482,0.17762403,67994.0,67993.0,0.1655]
[1722127822689,0.17762403,67994.0,67993.0,0.1385]
[1722127822690,0.15109957,67994.0,67993.0,0.1385]
[1722127822889,0.15109957,67994.0,67993.0,0.263159]
[1722127823106,0.15209957,67994.0,67993.0,0.499477]
[1722127823721,0.15209957,67994.0,67993.0,0.1465]
[1722127823923,0.15209957,67994.0,67993.0,0.264159]
[1722127824549,0.15109957,67994.0,67993.0,0.1385]
[1722127824762,0.15109957,67994.0,67993.0,0.1445]
[1722127824964,0.15309957,67994.0,67993.0,0.1585]
[1722127826698,0.15309957,67994.0,67993.0,0.58660679]
[1722127827232,0.00284,67994.0,67993.0,0.82192479]
[1722127827466,0.00284,67994.0,67993.0,0.58660679]
[1722127830505,0.00284,67994.0,67993.0,1.05724279]
[1722127832048,0.00284,67994.0,67993.0,0.82192479]
[1722127833603,0.00284,67994.0,67993.0,1.05724279]
[1722127836722,0.00284,67994.0,67993.0,1.21234279]
[1722127837020,0.00284,67994.0,67993.0,1.23734279]
[1722127837747,0.00184,67994.0,67993.0,1.23134279]
[1722127838007,0.00184,67994.0,67993.0,1.21734279]
[1722127838008,0.00084,67994.0,67993.0,1.21734279]
[1722127838341,0.00184,67994.0,67993.0,1.46666079]
[1722127838567,0.00184,67994.0,67993.0,1.45266079]
[1722127838771,0.00284,67994.0,67993.0,1.45866079]
[1722127838922,0.002,67994.0,67993.0,1.72292036]
[1722127839121,0.001,67994.0,67993.0,2.0018554]
[1722127839325,0.001,67994.0,67993.0,1.95823836]
[1722127839523,0.00084,68010.0,68009.0,0.588155]
[1722127839694,0.00084,68010.0,68009.0,0.732955]
[1722127840091,0.00084,68010.0,68009.0,0.968217]
[1722127841406,0.00084,68010.0,68009.0,0.979217]
[1722127841590,0.00084,68010.0,68009.0,0.262431]
[1722127842014,0.00084,68010.0,68009.0,0.757955]
[1722127842231,0.00084,68010.0,68009.0,0.377893]
[1722127842674,0.00084,68010.0,68009.0,0.613155]
[1722127842877,0.00084,68010.0,68009.0,0.757955]
[1722127843028,0.00084,68010.0,68009.0,0.993217]
[1722127843231,0.00084,68010.0,68009.0,0.982217]
[1722127843435,0.00084,68010.0,68009.0,0.996217]
[1722127843436,0.00184,68010.0,68009.0,0.996217]
[1722127844254,0.00184,68010.0,68009.0,0.760955]
[1722127845232,0.00184,68010.0,68009.0,0.769533]
[1722127845882,0.00184,68010.0,68009.0,0.534271]
[1722127846087,0.00184,68010.0,68009.0,0.389471]
[1722127846673,0.009223,68010.0,68009.0,0.389471]
[1722127848270,0.00184,68010.0,68009.0,0.624733]
[1722127849023,0.00184,68010.0,68009.0,0.703333]
[1722127850214,0.00184,68010.0,68009.0,0.115178]
[1722127850417,0.00922025,68010.0,68009.0,0.115178]
[1722127850630,0.00922025,68010.0,68009.0,0.232809]
[1722127851079,0.00922025,68010.0,68009.0,0.468071]
[1722127852307,0.00184,68010.0,68009.0,0.764833]
[1722127852502,0.04184,68010.0,68009.0,0.529571]
[1722127853242,0.04922265,68010.0,68009.0,0.529571]
[1722127854640,0.04922265,68010.0,68009.0,0.764833]
[1722127854783,0.04184,68010.0,68009.0,0.764833]
[1722127856712,0.04184,68010.0,68009.0,0.154209]
[1722127856918,0.04184,68010.0,68009.0,0.389471]
[1722127856919,0.04924046,68010.0,68009.0,0.389471]
[1722127857126,0.04184,68010.0,68009.0,0.389471]
[1722127857510,0.04184,68010.0,68009.0,0.624733]
[1722127858766,0.04184,68010.0,68009.0,0.389471]
[1722127861467,0.04184,68010.0,68009.0,0.624733]
[1722127862744,0.04184,68010.0,68009.0,1.004095]
[1722127863634,0.04184,68010.0,68009.0,0.768833]
[1722127865062,0.04184,68010.0,68009.0,0.533571]
[1722127865260,0.06667414,68010.0,68009.0,0.533571]
[1722127865467,0.04908092,68010.0,68009.0,0.533571]
[1722127865890,0.06667352,68010.0,68009.0,0.533571]
[1722127866053,0.04908092,68010.0,68009.0,0.533571]
[1722127866254,0.06650527,68010.0,68009.0,0.533571]
[1722127866656,0.06650527,68010.0,68009.0,0.028]
[1722127866867,0.06650527,68010.0,68009.0,0.145631]
[1722127867907,0.06650527,68010.0,68009.0,0.028]
[1722127868083,0.56965284,68010.0,68009.0,0.028]
[1722127868309,0.47929384,68010.0,68009.0,0.028]
[1722127868469,0.71455284,68010.0,68009.0,0.028]
[1722127869080,0.71355284,68010.0,68009.0,0.014]
[1722127869282,0.117633,68008.0,68004.0,0.11764]
[1722127869484,0.01742435,68007.0,68004.0,0.11764]
[1722127869726,0.01742435,68007.0,68003.0,0.117641]
[1722127869727,0.0015542,68006.0,68003.0,0.117641]
[1722127870077,0.0015542,68006.0,68001.0,0.0612]
[1722127870078,0.23528,68004.0,68001.0,0.0612]
[1722127870282,0.16768392,68005.0,67997.0,0.0089069]
[1722127870283,0.1449,68002.0,67997.0,0.0089069]
[1722127870488,0.01897855,68001.0,67999.0,0.117648]
[1722127870692,0.0015542,68001.0,67999.0,0.117648]
[1722127870862,0.01710196,68000.0,67999.0,0.117648]
[1722127871282,0.02434708,68000.0,67999.0,0.117648]
[1722127871456,0.00724512,68000.0,67999.0,0.117648]
[1722127871656,0.0187353,68002.0,67999.0,0.117648]
[1722127871908,0.00725073,68000.0,67999.0,0.117648]
[1722127872074,0.0187353,68000.0,67999.0,0.117648]
[1722127872472,0.0088072,68000.0,67999.0,0.117648]
[1722127872644,0.007253,68000.0,67999.0,0.131648]
[1722127873022,0.0015542,68002.0,67999.0,0.131648]
[1722127873340,0.0015542,68000.0,67999.0,0.014]
[1722127873541,0.00720893,68001.0,67999.0,0.014]
[1722127873745,0.26790157,68003.0,67999.0,0.131648]
[1722127873746,0.00881402,68000.0,67999.0,0.131648]
[1722127873980,0.00981402,68000.0,67999.0,0.666342]
[1722127874207,0.00825982,68000.0,67999.0,0.666342]
[1722127874418,0.0015542,68006.0,68002.0,0.117642]
[1722127874561,0.167669,68005.0,68003.0,0.117641]
[1722127874762,0.0015542,68004.0,68003.0,0.117641]
[1722127874964,0.0015542,68004.0,68003.0,0.588207]
[1722127875178,0.00879217,68004.0,68003.0,0.588207]
[1722127875382,0.0015542,68009.0,68008.0,0.117633]
[1722127875653,0.01944101,68009.0,68008.0,0.117633]
[1722127875786,0.02667122,68009.0,68008.0,0.352899]
[1722127875987,0.02511523,68009.0,68008.0,0.117633]
[1722127876215,0.01788502,68009.0,68008.0,0.117633]
[1722127876405,0.01788502,68009.0,68007.0,0.117634]
[1722127876406,0.00878106,68009.0,68007.0,0.117634]
[1722127876602,0.02053276,68009.0,68007.0,0.117634]
[1722127876855,0.0015542,68008.0,68006.0,0.09017126]
[1722127877025,0.0015542,68008.0,68007.0,0.117634]
[1722127877227,0.00878227,68008.0,68007.0,0.117634]
[1722127877428,0.00722807,68008.0,68007.0,0.117634]
[1722127877796,0.00878227,68008.0,68007.0,0.352903]
[1722127877959,0.00722807,68008.0,68007.0,0.352903]
[1722127878173,0.04084,68010.0,68009.0,0.117631]
[1722127878340,0.05424915,68010.0,68009.0,0.117631]
[1722127878541,0.06147841,68010.0,68009.0,0.117631]
[1722127879436,0.06147841,68010.0,68009.0,0.352893]
[1722127879667,0.06147841,68010.0,68009.0,0.657955]
[1722127879929,0.06147841,68010.0,68009.0,1.126217]
[1722127879930,0.04184,68010.0,68009.0,1.126217]
[1722127880143,0.04184,68010.0,68009.0,1.140217]
[1722127880358,0.04184,68010.0,68009.0,1.130217]
[1722127880359,0.04084,68010.0,68009.0,1.130217]
[1722127880572,0.04084,68010.0,68009.0,1.116217]
[1722127880806,0.04184,68010.0,68009.0,1.126217]
[1722127881020,0.04184,68010.0,68009.0,1.17004694]
[1722127882086,0.04084,68010.0,68009.0,1.16004694]
[1722127882513,0.04184,68010.0,68009.0,1.17404694]
[1722127882727,0.04184,68010.0,68009.0,1.18804694]
[1722127883023,0.04184,68010.0,68009.0,1.144217]
[1722127883304,0.04184,68010.0,68009.0,1.18804694]
[1722127883471,0.04184,68010.0,68009.0,0.95278494]
[1722127883613,0.04184,68010.0,68009.0,1.144217]
[1722127884255,0.05184,68010.0,68009.0,1.144217]
[1722127884519,0.05184,68010.0,68009.0,1.18804575]
[1722127885918,0.05184,68010.0,68009.0,1.144217]
[1722127886323,0.05184,68010.0,68009.0,0.753855]
[1722127888765,0.05184,68010.0,68009.0,0.79766524]
[1722127888972,0.05184,68010.0,68009.0,0.7976636]
[1722127889249,0.05184,68010.0,68009.0,0.753855]
[1722127889382,0.05184,68010.0,68009.0,0.380893]
[1722127890014,0.0590225,68010.0,68009.0,0.380893]
[1722127890460,0.0590225,68010.0,68009.0,0.145631]
[1722127890676,0.70277007,68010.0,68009.0,0.028]
[1722127890804,0.95185293,68010.0,68009.0,0.028]
[1722127891007,1.18711193,68010.0,68009.0,0.028]
[1722127891986,1.18711193,68010.0,68009.0,0.014]
[1722127892390,0.117642,68003.0,67998.0,0.117649]
[1722127892589,0.13296803,68002.0,67998.0,0.117649]
[1722127892785,0.117645,68001.0,67996.0,0.12642893]
[1722127893089,0.117645,68001.0,67994.0,0.000924]
[1722127893090,0.352966,67995.0,67994.0,0.000924]
[1722127893295,0.51713644,67995.0,67994.0,0.000924]
[1722127893498,0.52427241,67995.0,67994.0,0.000924]
[1722127893700,0.15739554,67995.0,67994.0,0.000924]
[1722127893904,0.27505054,67995.0,67994.0,0.000924]
[1722127894106,0.28929696,67995.0,67994.0,0.000924]
[1722127894309,0.27505054,67995.0,67994.0,0.000924]
[1722127894732,0.28938624,67995.0,67994.0,0.000924]
[1722127895147,0.29038624,67995.0,67994.0,0.014924]
[1722127895334,0.27605054,67995.0,67994.0,0.028924]
[1722127895538,0.29030052,67995.0,67994.0,0.028924]
[1722127895742,0.29030128,67995.0,67994.0,0.028924]
[1722127896374,0.27605054,67995.0,67994.0,0.028924]
[1722127896578,0.51136154,67995.0,67994.0,0.028924]
[1722127896781,0.52556602,67995.0,67994.0,0.028924]
[1722127898865,0.51136154,67995.0,67994.0,0.028924]
[1722127900284,0.5255171,67995.0,67994.0,0.028924]
[1722127900499,0.51136154,67995.0,67994.0,0.028924]
[1722127900948,0.29025528,67995.0,67994.0,0.028924]
[1722127901172,0.15994974,67995.0,67994.0,0.028924]
[1722127901397,0.27605054,67995.0,67994.0,0.028924]
[1722127902046,0.27505054,67995.0,67994.0,0.014924]
[1722127902277,0.27605054,67995.0,67994.0,0.014924]
[1722127902501,0.27605054,67995.0,67994.0,0.028924]
[1722127902722,0.27505054,67995.0,67994.0,0.014924]
[1722127902944,0.27605054,67995.0,67994.0,0.028924]
[1722127903589,0.51136154,67995.0,67994.0,0.028924]
[1722127907093,1.12428354,67995.0,67994.0,0.028924]
[1722127907307,1.13656576,67995.0,67994.0,0.028924]
[1722127907981,1.37087676,67995.0,67994.0,0.014924]
[1722127908202,1.41865373,67995.0,67994.0,0.000924]
[1722127908406,1.37287676,67995.0,67994.0,0.000924]
[1722127908800,1.37087676,67995.0,67994.0,0.000924]
[1722127909421,1.42089929,67995.0,67994.0,0.000924]
[1722127909581,1.37374032,67995.0,67994.0,0.000924]
[1722127909799,1.52145366,67995.0,67994.0,0.000924]
[1722127910355,1.47374032,67995.0,67994.0,0.000924]
[1722127910586,1.52135272,67995.0,67994.0,0.000924]
[1722127911401,1.5213534,67995.0,67994.0,0.000924]
[1722127912186,1.5193534,67995.0,67994.0,0.000924]
[1722127912407,1.5193534,67995.0,67994.0,0.001924]
[1722127912408,1.5253534,67995.0,67994.0,0.001924]
[1722127912841,1.61485411,67995.0,67994.0,0.001924]
[1722127913144,1.5121692,67995.0,67994.0,0.001924]
[1722127913380,1.5121692,67995.0,67994.0,0.002924]
[1722127913381,1.5248438,67995.0,67994.0,0.002924]
[1722127913606,1.53373769,67995.0,67994.0,0.002924]
[1722127913771,1.52773769,67995.0,67994.0,0.001924]
[1722127914205,1.53373769,67995.0,67994.0,0.002924]
[1722127914417,1.48616303,67995.0,67994.0,0.002924]
[1722127914716,1.47348843,67995.0,67994.0,0.001924]
[1722127914968,1.53593288,67995.0,67994.0,0.002924]
[1722127915380,1.53593288,67995.0,67994.0,0.001]
[1722127916269,1.53622875,67995.0,67994.0,0.001]
[1722127918397,1.25212813,67995.0,67994.0,0.001]
[1722127918639,0.29500124,67995.0,67994.0,0.001]